fUST/lending_fUST_20250219
["ID","MTS","AMOUNT","RATE_DAILY","PERIOD"]
[353540549,1739904667377,-686.89,0.00014849,2]
[353540550,1739904667393,-655.2,0.00014849,2]
[353540551,1739904667404,-529.777149,0.00014849,2]
[353540552,1739904667415,-500.0,0.00014849,2]
[353540553,1739904667427,-418.75,0.00014849,2]
[353540554,1739904667437,-979.8,0.00014849,2]
[353540555,1739904667448,-583.66,0.00014849,2]
[353540556,1739904667457,-606.93,0.00014849,2]
[353540557,1739904667467,-241.44315819,0.00014849,2]
[353540558,1739904667477,-500.0,0.00014849,2]
[353540559,1739904667487,-500.0,0.00014849,2]
[353540560,1739904667498,-222.18,0.00014849,2]
[353540561,1739904667508,-500.0,0.00014849,2]
[353540562,1739904667517,-616.3,0.00014849,2]
[353540563,1739904667527,-500.0,0.00014849,2]
[353540564,1739904667538,-500.0,0.00014849,2]
[353540565,1739904667548,-5839.52,0.00014849,2]
[353540566,1739904667558,-570.58,0.00014849,2]
[353540567,1739904667568,-500.0,0.00014849,2]
[353540568,1739904667578,-500.0,0.00014849,2]
[353540569,1739904667589,-735.62,0.00014849,2]
[353540570,1739904667599,-500.0,0.00014849,2]
[353540571,1739904667609,-500.0,0.00014849,2]
[353540572,1739904667620,-531.62,0.00014849,2]
[353540573,1739904667631,-500.0,0.00014849,2]
[353540574,1739904667645,-1659.04,0.00014849,2]
[353540575,1739904667656,-537.36,0.00014849,2]
[353540576,1739904667666,-685.01,0.00014849,2]
[353540577,1739904667677,-500.0,0.00014849,2]
[353540578,1739904667687,-500.0,0.00014849,2]
[353540579,1739904667698,-500.0,0.00014849,2]
[353540580,1739904667707,-500.0,0.00014849,2]
[353540581,1739904667717,-3166.95,0.00014849,2]
[353540582,1739904667727,-627.01,0.00014849,2]
[353540583,1739904667738,-1452.95,0.00014849,2]
[353540584,1739904667748,-1398.72,0.00014849,2]
[353540585,1739904667811,-730.74,0.00014849,2]
[353540586,1739904667827,-500.0,0.00014849,2]
[353540587,1739904667839,-500.0,0.00014849,2]
[353540588,1739904667850,-748.94,0.00014849,2]
[353540589,1739904667861,-10223.13,0.00014849,2]
[353540590,1739904667872,-500.0,0.00014849,2]
[353540591,1739904667888,-500.0,0.00014849,2]
[353540592,1739904667899,-1165.79,0.00014849,2]
[353540593,1739904667909,-500.0,0.00014849,2]
[353540594,1739904667919,-1349.29,0.00014849,2]
[353540595,1739904667929,-500.0,0.00014849,2]
[353540596,1739904667939,-638.65,0.00014849,2]
[353540597,1739904667950,-772.53,0.00014849,2]
[353540598,1739904667959,-1535.25,0.00014849,2]
[353540599,1739904667970,-500.0,0.00014849,2]
[353540600,1739904667980,-2947.02,0.00014849,2]
[353540601,1739904667989,-608.49,0.00014849,2]
[353540602,1739904667999,-798.91,0.00014849,2]
[353540603,1739904668010,-154.29,0.00014849,2]
[353540604,1739904668020,-500.0,0.00014849,2]
[353540605,1739904668030,-31783.51,0.00014849,2]
[353540606,1739904668039,-1717.72,0.00014849,2]
[353540607,1739904668049,-1006.6,0.00014849,2]
[353540608,1739904668060,-784.86,0.00014849,2]
[353540609,1739904668070,-10077.14434103,0.000149,2]
[353540610,1739904668080,-605.637978,0.000149,2]
[353540611,1739904668090,-605.637978,0.000149,2]
[353540612,1739904668101,-151.0,0.000149,2]
[353540613,1739904668111,-393924.466868,0.000149,2]
[353540614,1739904668121,-267.607392,0.000149,2]
[353540615,1739904668132,-267.607392,0.000149,2]
[353540616,1739904668146,-500.0,0.00014931,2]
[353540617,1739904668156,-686.89,0.00014931,2]
[353540618,1739904668166,-655.2,0.00014931,2]
[353540619,1739904668176,-500.0,0.00014931,2]
[353540620,1739904668186,-979.8,0.00014931,2]
[353540621,1739904668196,-583.66,0.00014931,2]
[353540622,1739904668206,-606.93,0.00014931,2]
[353540623,1739904668215,-369.21,0.00014931,2]
[353540624,1739904668226,-500.0,0.00014931,2]
[353540625,1739904668235,-176.56,0.00014931,2]
[353540626,1739904668245,-616.3,0.00014931,2]
[353540627,1739904668256,-500.0,0.00014931,2]
[353540628,1739904668271,-500.0,0.00014931,2]
[353540629,1739904668290,-5839.52,0.00014931,2]
[353540630,1739904668307,-500.0,0.00014931,2]
[353540631,1739904668326,-500.0,0.00014931,2]
[353540632,1739904668344,-735.62,0.00014931,2]
[353540633,1739904668362,-500.0,0.00014931,2]
[353540634,1739904668380,-500.0,0.00014931,2]
[353540635,1739904668402,-531.62,0.00014931,2]
[353540636,1739904668417,-500.0,0.00014931,2]
[353540637,1739904668433,-1659.04,0.00014931,2]
[353540638,1739904668453,-537.36,0.00014931,2]
[353540639,1739904668474,-685.01,0.00014931,2]
[353540640,1739904668487,-500.0,0.00014931,2]
[353540641,1739904668505,-500.0,0.00014931,2]
[353540642,1739904668521,-500.0,0.00014931,2]
[353540643,1739904668537,-349.31001524,0.00014931,2]
[353540644,1739904668550,-3166.95,0.00014931,2]
[353540645,1739904668567,-627.01,0.00014931,2]
[353540646,1739904668583,-1452.95,0.00014931,2]
[353540647,1739904668598,-1398.72,0.00014931,2]
[353540648,1739904668612,-730.74,0.00014931,2]
[353540649,1739904668626,-500.0,0.00014931,2]
[353540650,1739904668643,-500.0,0.00014931,2]
[353540651,1739904668656,-748.94,0.00014931,2]
[353540652,1739904668671,-10223.13,0.00014931,2]
[353540653,1739904668685,-500.0,0.00014931,2]
[353540654,1739904668700,-1165.79,0.00014931,2]
[353540655,1739904668714,-1349.29,0.00014931,2]
[353540656,1739904668729,-500.0,0.00014931,2]
[353540657,1739904668743,-638.65,0.00014931,2]
[353540658,1739904668759,-772.53,0.00014931,2]
[353540659,1739904668774,-1535.25,0.00014931,2]
[353540660,1739904668790,-500.0,0.00014931,2]
[353540661,1739904668806,-2947.02,0.00014931,2]
[353540662,1739904668822,-608.49,0.00014931,2]
[353540663,1739904668835,-798.91,0.00014931,2]
[353540664,1739904668851,-500.0,0.00014931,2]
[353540665,1739904668866,-31783.51,0.00014931,2]
[353540666,1739904668881,-1717.72,0.00014931,2]
[353540667,1739904668897,-1006.6,0.00014931,2]
[353540668,1739904668912,-784.86,0.00014931,2]
[353540669,1739904668928,-587.0,0.00014974,2]
[353540670,1739904668943,-6389.6688973,0.00015,3]
[353540671,1739904669033,-500.0,0.00015013,2]
[353540672,1739904669045,-686.89,0.00015013,2]
[353540673,1739904669055,-655.2,0.00015013,2]
[353540674,1739904669064,-500.0,0.00015013,2]
[353540675,1739904669074,-979.8,0.00015013,2]
[353540676,1739904669084,-583.66,0.00015013,2]
[353540677,1739904669094,-606.93,0.00015013,2]
[353540678,1739904669104,-500.0,0.00015013,2]
[353540679,1739904669113,-616.3,0.00015013,2]
[353540680,1739904669123,-500.0,0.00015013,2]
[353540681,1739904669132,-500.0,0.00015013,2]
[353540682,1739904669143,-5839.52,0.00015013,2]
[353540683,1739904669153,-500.0,0.00015013,2]
[353540684,1739904669163,-500.0,0.00015013,2]
[353540685,1739904669173,-735.62,0.00015013,2]
[353540686,1739904669183,-227.08,0.00015013,2]
[353540687,1739904669192,-500.0,0.00015013,2]
[353540688,1739904669202,-531.62,0.00015013,2]
[353540689,1739904669212,-626.0,0.00015013,2]
[353540690,1739904669222,-1659.04,0.00015013,2]
[353540691,1739904669231,-537.36,0.00015013,2]
[353540692,1739904669241,-685.01,0.00015013,2]
[353540693,1739904669251,-500.0,0.00015013,2]
[353540694,1739904669261,-500.0,0.00015013,2]
[353540695,1739904669271,-500.0,0.00015013,2]
[353540696,1739904669281,-3166.95,0.00015013,2]
[353540697,1739904669291,-627.01,0.00015013,2]
[353540698,1739904669301,-1452.95,0.00015013,2]
[353540699,1739904669310,-1398.72,0.00015013,2]
[353540700,1739904669320,-730.74,0.00015013,2]
[353540701,1739904669330,-632.7,0.00015013,2]
[353540702,1739904669340,-500.0,0.00015013,2]
[353540703,1739904669350,-748.94,0.00015013,2]
[353540704,1739904669359,-10223.13,0.00015013,2]
[353540705,1739904669368,-500.0,0.00015013,2]
[353540706,1739904669379,-1165.79,0.00015013,2]
[353540707,1739904669391,-1349.29,0.00015013,2]
[353540708,1739904669400,-500.0,0.00015013,2]
[353540709,1739904669410,-638.65,0.00015013,2]
[353540710,1739904669420,-772.53,0.00015013,2]
[353540711,1739904669429,-1535.25,0.00015013,2]
[353540712,1739904669438,-500.0,0.00015013,2]
[353540713,1739904669448,-2947.02,0.00015013,2]
[353540714,1739904669458,-608.49,0.00015013,2]
[353540715,1739904669469,-798.91,0.00015013,2]
[353540716,1739904669479,-476.88297688,0.00015013,2]
[353540717,1739904669488,-31783.51,0.00015013,2]
[353540718,1739904669498,-1717.72,0.00015013,2]
[353540719,1739904669508,-1006.6,0.00015013,2]
[353540720,1739904669517,-784.86,0.00015013,2]
[353540721,1739904669527,-465.5958569,0.00015018,2]
[353540722,1739904669537,-154.7234452,0.00015073,2]
[353540723,1739904669547,-374.83052,0.00015073,2]
[353540724,1739904669556,-308.930967,0.00015073,2]
[353540725,1739904669567,-154.7234452,0.00015073,2]
[353540726,1739904669576,-500.0,0.00015095,2]
[353540727,1739904669586,-686.89,0.00015095,2]
[353540728,1739904669596,-655.2,0.00015095,2]
[353540729,1739904669606,-500.0,0.00015095,2]
[353540730,1739904669616,-979.8,0.00015095,2]
[353540731,1739904669625,-583.66,0.00015095,2]
[353540732,1739904669639,-606.93,0.00015095,2]
[353540733,1739904669648,-500.0,0.00015095,2]
[353540734,1739904669658,-616.3,0.00015095,2]
[353540735,1739904669668,-500.0,0.00015095,2]
[353540736,1739904669678,-617.56,0.00015095,2]
[353540737,1739904669688,-5839.52,0.00015095,2]
[353540738,1739904669698,-500.0,0.00015095,2]
[353540739,1739904669707,-500.0,0.00015095,2]
[353540740,1739904669717,-735.62,0.00015095,2]
[353540741,1739904669726,-500.0,0.00015095,2]
[353540742,1739904669736,-531.62,0.00015095,2]
[353540743,1739904669746,-1659.04,0.00015095,2]
[353540744,1739904669756,-537.36,0.00015095,2]
[353540745,1739904669766,-685.01,0.00015095,2]
[353540746,1739904669776,-357.5,0.00015095,2]
[353540747,1739904669787,-175.6,0.00015095,2]
[353540748,1739904669799,-500.0,0.00015095,2]
[353540749,1739904669809,-3166.95,0.00015095,2]
[353540750,1739904669819,-627.01,0.00015095,2]
[353540751,1739904669829,-1452.95,0.00015095,2]
[353540752,1739904669839,-1398.72,0.00015095,2]
[353540753,1739904669848,-730.74,0.00015095,2]
[353540754,1739904669858,-240.66756905,0.00015095,2]
[353540755,1739904669869,-748.94,0.00015095,2]
[353540756,1739904669878,-10223.13,0.00015095,2]
[353540757,1739904669890,-500.0,0.00015095,2]
[353540758,1739904669900,-1165.79,0.00015095,2]
[353540759,1739904669910,-1349.29,0.00015095,2]
[353540760,1739904669971,-500.0,0.00015095,2]
[353540761,1739904669982,-638.65,0.00015095,2]
[353540762,1739904669992,-772.53,0.00015095,2]
[353540763,1739904670002,-1535.25,0.00015095,2]
[353540764,1739904670011,-500.0,0.00015095,2]
[353540765,1739904670021,-2947.02,0.00015095,2]
[353540766,1739904670031,-608.49,0.00015095,2]
[353540767,1739904670040,-798.91,0.00015095,2]
[353540768,1739904670050,-31783.51,0.00015095,2]
[353540769,1739904670059,-1717.72,0.00015095,2]
[353540770,1739904670069,-1006.6,0.00015095,2]
[353540771,1739904670079,-784.86,0.00015095,2]
[353540772,1739904670088,-151.0,0.00015132,2]
[353540773,1739904670097,-500.0,0.00015178,2]
[353540774,1739904670107,-686.89,0.00015178,2]
[353540775,1739904670116,-655.2,0.00015178,2]
[353540776,1739904670126,-500.0,0.00015178,2]
[353540777,1739904670138,-979.8,0.00015178,2]
[353540778,1739904670148,-583.66,0.00015178,2]
[353540779,1739904670158,-606.93,0.00015178,2]
[353540780,1739904670168,-378.59,0.00015178,2]
[353540781,1739904670178,-616.3,0.00015178,2]
[353540782,1739904670188,-625.98600996,0.00015178,2]
[353540783,1739904670199,-5839.52,0.00015178,2]
[353540784,1739904670209,-500.0,0.00015178,2]
[353540785,1739904670219,-500.0,0.00015178,2]
[353540786,1739904670229,-735.62,0.00015178,2]
[353540787,1739904670239,-215.73,0.00015178,2]
[353540788,1739904670249,-531.62,0.00015178,2]
[353540789,1739904670259,-1659.04,0.00015178,2]
[353540790,1739904670269,-537.36,0.00015178,2]
[353540791,1739904670278,-685.01,0.00015178,2]
[353540792,1739904670288,-403.58,0.00015178,2]
[353540793,1739904670298,-3166.95,0.00015178,2]
[353540794,1739904670307,-627.01,0.00015178,2]
[353540795,1739904670318,-1452.95,0.00015178,2]
[353540796,1739904670328,-1398.72,0.00015178,2]
[353540797,1739904670337,-730.74,0.00015178,2]
[353540798,1739904670347,-748.94,0.00015178,2]
[353540799,1739904670357,-10223.13,0.00015178,2]
[353540800,1739904670366,-537.04,0.00015178,2]
[353540801,1739904670376,-1165.79,0.00015178,2]
[353540802,1739904670387,-1349.29,0.00015178,2]
[353540803,1739904670398,-500.0,0.00015178,2]
[353540804,1739904670408,-638.65,0.00015178,2]
[353540805,1739904670418,-772.53,0.00015178,2]
[353540806,1739904670428,-1535.25,0.00015178,2]
[353540807,1739904670439,-500.0,0.00015178,2]
[353540808,1739904670449,-2947.02,0.00015178,2]
[353540809,1739904670459,-608.49,0.00015178,2]
[353540810,1739904670469,-798.91,0.00015178,2]
[353540811,1739904670479,-31783.51,0.00015178,2]
[353540812,1739904670489,-1717.72,0.00015178,2]
[353540813,1739904670499,-1006.6,0.00015178,2]
[353540814,1739904670509,-784.86,0.00015178,2]
[353540815,1739904670518,-500.0,0.0001526,2]
[353540816,1739904670527,-686.89,0.0001526,2]
[353540817,1739904670536,-655.2,0.0001526,2]
[353540818,1739904670546,-500.0,0.0001526,2]
[353540819,1739904670557,-979.8,0.0001526,2]
[353540820,1739904670566,-583.66,0.0001526,2]
[353540821,1739904670577,-606.93,0.0001526,2]
[353540822,1739904670586,-616.3,0.0001526,2]
[353540823,1739904670595,-5839.52,0.0001526,2]
[353540824,1739904670605,-503.76,0.0001526,2]
[353540825,1739904670615,-500.0,0.0001526,2]
[353540826,1739904670625,-735.62,0.0001526,2]
[353540827,1739904670635,-531.62,0.0001526,2]
[353540828,1739904670646,-1659.04,0.0001526,2]
[353540829,1739904670656,-537.36,0.0001526,2]
[353540830,1739904670666,-685.01,0.0001526,2]
[353540831,1739904670675,-3166.95,0.0001526,2]
[353540832,1739904670685,-627.01,0.0001526,2]
[353540833,1739904670695,-1452.95,0.0001526,2]
[353540834,1739904670705,-1398.72,0.0001526,2]
[353540835,1739904670715,-730.74,0.0001526,2]
[353540836,1739904670725,-748.94,0.0001526,2]
[353540837,1739904670735,-10223.13,0.0001526,2]
[353540838,1739904670745,-1165.79,0.0001526,2]
[353540839,1739904670755,-1349.29,0.0001526,2]
[353540840,1739904670764,-500.0,0.0001526,2]
[353540841,1739904670776,-638.65,0.0001526,2]
[353540842,1739904670790,-772.53,0.0001526,2]
[353540843,1739904670800,-1535.25,0.0001526,2]
[353540844,1739904670809,-210.53,0.0001526,2]
[353540845,1739904670819,-2947.02,0.0001526,2]
[353540846,1739904670829,-608.49,0.0001526,2]
[353540847,1739904670839,-798.91,0.0001526,2]
[353540848,1739904670849,-31783.51,0.0001526,2]
[353540849,1739904670859,-1717.72,0.0001526,2]
[353540850,1739904670871,-1006.6,0.0001526,2]
[353540851,1739904670880,-784.86,0.0001526,2]
[353540852,1739904670891,-320.71202402,0.00015342,2]
[353540853,1739904670901,-686.89,0.00015342,2]
[353540854,1739904670910,-655.2,0.00015342,2]
[353540855,1739904670919,-500.0,0.00015342,2]
[353540856,1739904670930,-979.8,0.00015342,2]
[353540857,1739904670940,-583.66,0.00015342,2]
[353540858,1739904670950,-606.93,0.00015342,2]
[353540859,1739904670960,-616.3,0.00015342,2]
[353540860,1739904670970,-5839.52,0.00015342,2]
[353540861,1739904670980,-387.67,0.00015342,2]
[353540862,1739904670991,-735.62,0.00015342,2]
[353540863,1739904671001,-531.62,0.00015342,2]
[353540864,1739904671012,-1659.04,0.00015342,2]
[353540865,1739904671022,-537.36,0.00015342,2]
[353540866,1739904671033,-605.637978,0.00015342,2]
[353540867,1739904671043,-605.637978,0.00015342,2]
[353540868,1739904671053,-685.01,0.00015342,2]
[353540869,1739904671064,-151.0,0.00015342,2]
[353540870,1739904671074,-3166.95,0.00015342,2]
[353540871,1739904671084,-627.01,0.00015342,2]
[353540872,1739904671094,-1452.95,0.00015342,2]
[353540873,1739904671104,-267.607392,0.00015342,2]
[353540874,1739904671115,-1398.72,0.00015342,2]
[353540875,1739904671125,-267.607392,0.00015342,2]
[353540876,1739904671135,-730.74,0.00015342,2]
[353540877,1739904671147,-748.94,0.00015342,2]
[353540878,1739904671157,-10223.13,0.00015342,2]
[353540879,1739904671169,-1165.79,0.00015342,2]
[353540880,1739904671183,-1349.29,0.00015342,2]
[353540881,1739904671199,-500.0,0.00015342,2]
[353540882,1739904671209,-638.65,0.00015342,2]
[353540883,1739904671220,-772.53,0.00015342,2]
[353540884,1739904671230,-1535.25,0.00015342,2]
[353540885,1739904671241,-2947.02,0.00015342,2]
[353540886,1739904671251,-608.49,0.00015342,2]
[353540887,1739904671261,-798.91,0.00015342,2]
[353540888,1739904671271,-31783.51,0.00015342,2]
[353540889,1739904671281,-1717.72,0.00015342,2]
[353540890,1739904671292,-1006.6,0.00015342,2]
[353540891,1739904671302,-784.86,0.00015342,2]
[353540892,1739904671313,-686.89,0.00015424,2]
[353540893,1739904671323,-655.2,0.00015424,2]
[353540894,1739904671334,-500.0,0.00015424,2]
[353540895,1739904671345,-979.8,0.00015424,2]
[353540896,1739904671356,-583.66,0.00015424,2]
[353540897,1739904671367,-606.93,0.00015424,2]
[353540898,1739904671377,-616.3,0.00015424,2]
[353540899,1739904671388,-5839.52,0.00015424,2]
[353540900,1739904671398,-735.62,0.00015424,2]
[353540901,1739904671408,-531.62,0.00015424,2]
[353540902,1739904671419,-1659.04,0.00015424,2]
[353540903,1739904671429,-537.36,0.00015424,2]
[353540904,1739904671439,-685.01,0.00015424,2]
[353540905,1739904671449,-3166.95,0.00015424,2]
[353540906,1739904671459,-627.01,0.00015424,2]
[353540907,1739904671469,-1452.95,0.00015424,2]
[353540908,1739904671479,-1398.72,0.00015424,2]
[353540909,1739904671489,-730.74,0.00015424,2]
[353540910,1739904671498,-748.94,0.00015424,2]
[353540911,1739904671508,-10223.13,0.00015424,2]
[353540912,1739904671519,-1165.79,0.00015424,2]
[353540913,1739904671529,-1349.29,0.00015424,2]
[353540914,1739904671538,-591.81,0.00015424,2]
[353540915,1739904671548,-638.65,0.00015424,2]
[353540916,1739904671559,-772.53,0.00015424,2]
[353540917,1739904671568,-1535.25,0.00015424,2]
[353540918,1739904671578,-2947.02,0.00015424,2]
[353540919,1739904671588,-608.49,0.00015424,2]
[353540920,1739904671599,-798.91,0.00015424,2]
[353540921,1739904671609,-31783.51,0.00015424,2]
[353540922,1739904671619,-1717.72,0.00015424,2]
[353540923,1739904671629,-1006.6,0.00015424,2]
[353540924,1739904671640,-784.86,0.00015424,2]
[353540925,1739904671650,-13338.05277927,0.000155,2]
[353540926,1739904671661,-686.89,0.00015506,2]
[353540927,1739904671670,-655.2,0.00015506,2]
[353540928,1739904671680,-209.66,0.00015506,2]
[353540929,1739904671690,-979.8,0.00015506,2]
[353540930,1739904671699,-583.66,0.00015506,2]
[353540931,1739904671709,-606.93,0.00015506,2]
[353540932,1739904671719,-616.3,0.00015506,2]
[353540933,1739904671729,-5839.52,0.00015506,2]
[353540934,1739904671739,-735.62,0.00015506,2]
[353540935,1739904671749,-531.62,0.00015506,2]
[353540936,1739904671759,-1659.04,0.00015506,2]
[353540937,1739904671768,-537.36,0.00015506,2]
[353540938,1739904671779,-685.01,0.00015506,2]
[353540939,1739904671789,-3166.95,0.00015506,2]
[353540940,1739904671803,-627.01,0.00015506,2]
[353540941,1739904671813,-1452.95,0.00015506,2]
[353540942,1739904671823,-1398.72,0.00015506,2]
[353540943,1739904671832,-730.74,0.00015506,2]
[353540944,1739904671842,-748.94,0.00015506,2]
[353540945,1739904671852,-10223.13,0.00015506,2]
[353540946,1739904671862,-1165.79,0.00015506,2]
[353540947,1739904671874,-1349.29,0.00015506,2]
[353540948,1739904671884,-638.65,0.00015506,2]
[353540949,1739904671898,-772.53,0.00015506,2]
[353540950,1739904671914,-1535.25,0.00015506,2]
[353540951,1739904671924,-2947.02,0.00015506,2]
[353540952,1739904671933,-608.49,0.00015506,2]
[353540953,1739904671943,-798.91,0.00015506,2]
[353540954,1739904671952,-10443.6228905,0.00015506,2]
[353540955,1739904672176,-484.3244,0.00015506,2]
[353540956,1739904672188,-291.15323982,0.00015506,2]
[353540957,1739904672200,-2708.84676018,0.00015506,2]
[353540958,1739904672336,-500.0,0.00013698,2]
[353540959,1739904672345,-500.0,0.00013698,2]
[353540960,1739904672356,-500.0,0.0001378,2]
[353540961,1739904672366,-500.0,0.0001378,2]
[353540962,1739904672376,-500.0,0.00013863,2]
[353540963,1739904672388,-554.99,0.0001452,2]
[353540964,1739904672397,-554.99,0.00014602,2]
[353540965,1739904672407,-554.99,0.00014684,2]
[353540966,1739904672417,-500.0,0.00014767,2]
[353540967,1739904672427,-500.0,0.00014849,2]
[353540968,1739904672436,-500.0,0.00014931,2]
[353540969,1739904672446,-500.0,0.00015013,2]
[353540970,1739904672456,-500.0,0.00015095,2]
[353540971,1739904672466,-17855.5627095,0.00015506,2]
[353540972,1739904672476,-1717.72,0.00015506,2]
[353540973,1739904672485,-1006.6,0.00015506,2]
[353540974,1739904672494,-784.86,0.00015506,2]
[353540975,1739904672504,-686.92481256,0.00015589,2]
[353540976,1739904672513,-655.33,0.00015589,2]
[353540977,1739904672523,-980.0,0.00015589,2]
[353540978,1739904672533,-583.78,0.00015589,2]
[353540979,1739904672542,-606.9786448,0.00015589,2]
[353540980,1739904672551,-616.37,0.00015589,2]
[353540981,1739904672561,-5839.53495022,0.00015589,2]
[353540982,1739904672570,-735.78,0.00015589,2]
[353540983,1739904672580,-1659.11666209,0.00015589,2]
[353540984,1739904672589,-537.5,0.00015589,2]
[353540985,1739904672598,-685.19,0.00015589,2]
[353540986,1739904672608,-3167.15409284,0.00015589,2]
[353540987,1739904672618,-627.22,0.00015589,2]
[353540988,1739904672627,-1453.11865337,0.00015589,2]
[353540989,1739904672638,-1398.85,0.00015589,2]
[353540990,1739904672647,-730.89,0.00015589,2]
[353540991,1739904672657,-749.08,0.00015589,2]
[353540992,1739904672666,-10223.13685987,0.00015589,2]
[353540993,1739904672676,-1165.82940541,0.00015589,2]
[353540994,1739904672685,-1349.45372254,0.00015589,2]
[353540995,1739904672695,-638.87028343,0.00015589,2]
[353540996,1739904672705,-772.57,0.00015589,2]
[353540997,1739904672714,-1535.43,0.00015589,2]
[353540998,1739904672724,-2947.04004218,0.00015589,2]
[353540999,1739904672734,-608.54,0.00015589,2]
[353541000,1739904672744,-799.06,0.00015589,2]
[353541001,1739904672753,-24089.94105406,0.00015589,2]
[353541002,1739904672766,-2628.0,0.00015589,2]
[353541003,1739904672778,-937.22,0.00015589,2]
[353541004,1739904672800,-554.99,0.00014767,2]
[353541005,1739904672810,-446.22,0.00015178,2]
[353541006,1739904672819,-3935.980024,0.00015589,2]
[353541009,1739905556126,-196.2744193,0.00011104,2]
[353541010,1739905556148,-312.44648334,0.00011339,2]
[353541011,1739905556170,-290.20093246,0.00011454,2]
[353541013,1739905625084,-508.30422232,0.00011339,2]
[353541014,1739905625108,-300.0,0.00011569,2]
[353541015,1739905625131,-493.65946371,0.0001157,2]
[353541016,1739905631124,-669.20443097,0.0001157,2]
[353541017,1739905635096,-609.21427014,0.0001157,2]
[353541018,1739905645101,-516.32864162,0.0001157,2]
[353541019,1739905650129,-2881.16747632,0.0001157,2]
[353541021,1739905757096,-300.0,0.00011569,2]
[353541022,1739905757119,-19730.42571724,0.0001157,2]
[353541023,1739905757140,-5303.99932004,0.000121,2]
[353541024,1739905757160,-500.0,0.00012193,2]
[353541025,1739905757185,-500.0,0.00012193,2]
[353541026,1739905757206,-500.0,0.00012193,2]
[353541027,1739905757230,-500.0,0.00012193,2]
[353541028,1739905757254,-500.0,0.00012193,2]
[353541029,1739905757277,-500.0,0.00012193,2]
[353541030,1739905757299,-500.0,0.00012193,2]
[353541031,1739905757324,-500.0,0.00012193,2]
[353541032,1739905757345,-500.0,0.00012193,2]
[353541033,1739905757367,-500.0,0.00012193,2]
[353541034,1739905757389,-500.0,0.00012193,2]
[353541035,1739905757410,-500.0,0.00012193,2]
[353541036,1739905757431,-500.0,0.00012193,2]
[353541037,1739905757454,-500.0,0.00012193,2]
[353541038,1739905757476,-500.0,0.00012193,2]
[353541039,1739905757498,-458.97529571,0.00012193,2]
[353541040,1739905757660,-300.0,0.00012193,2]
[353541041,1739905757684,-466.76933093,0.00012193,2]
[353541042,1739905757707,-500.0,0.00012193,2]
[353541043,1739905757730,-500.0,0.00012193,2]
[353541044,1739905757751,-544.3264095,0.00012193,2]
[353541045,1739905757773,-500.0,0.00012193,2]
[353541046,1739905757796,-500.0,0.00012193,2]
[353541047,1739905757819,-500.0,0.00012193,2]
[353541048,1739905757840,-500.0,0.00012193,2]
[353541049,1739905757862,-500.0,0.00012193,2]
[353541050,1739905757885,-500.0,0.00012193,2]
[353541051,1739905757912,-500.0,0.00012193,2]
[353541052,1739905757933,-500.0,0.00012193,2]